Cogmind - Beta 15 @@@ ROGUE MODE // 2025.05.22 @ 22:51:17 Player: Vect Result: Destroyed by G-47 Trooper with Particle Gun Performance ------------- Evolutions (2) 1000 Regions Visited (5) 1000 Robots Destroyed (51) 255 Value Destroyed (1481) 1481 Prototype IDs (28) 560 Alien Tech Used (0) 0 Bonus (300) 300 TOTAL SCORE: 4596 Bonus ------- Aligned with FarCom 300 Cogmind --------- Core Integrity 0/550 Matter 141/300 Energy 12/100 System Corruption 0% Temperature Warning (373) Movement Core (300) Ox5 Location -8/Materials Parts ------- > --- POWER (1) -------- (None) > --- PROPULSION (3) --- (None) > --- UTILITY (5) ------ Medium Storage Unit > --- WEAPON (2) ------- Advanced Beam Cannon Advanced Beam Cannon > --- INVENTORY (10) --- Faulty Advanced Beam Cannon AWS/Gauss Gauss Cannon Peak State ------------ > --- POWER ------------ Light Deuterium Engine > --- PROPULSION ------- Aluminum Leg Aluminum Leg Carbon-fiber Leg > --- UTILITY ---------- Cooling System Small Storage Unit Improved Signal Interpreter Light Armor Plating High-powered Tractor Beam > --- WEAPON ----------- AWS/Gauss > --- INVENTORY -------- Actuator Array System Restoration Module Medium Laser Medium Laser Particle Gun Gauss Cannon Grenade Launcher [Rating: 35] Favorites ----------- Power Ion Engine Engine Ion Engine Power Core Nuclear Core Propulsion Aluminum Leg Leg Aluminum Leg Wheel Armored Wheel Utility Small Storage Unit Device Cooling System Storage Small Storage Unit Processor Improved Signal Interpreter Protection Hardened Medium Armor Plating Weapon Light EM Pulse Cannon Energy Gun Medium Laser Energy Cannon Light EM Pulse Cannon Ballistic Gun AWS/Gauss Ballistic Cannon Light Cannon Launcher Grenade Launcher Build | -11 -10 -10 -10 -9 -8 ------- Run | Yrd Mat Min Exi Min Mat Slots Evolved 4 | . . . . . 4 Power . | . . . . . . Propulsion 1 | . . . . . 1 Utility 3 | . . . . . 3 Weapon . | . . . . . . Parts Attached 44 | 6 3 8 2 2 23 Power 6 | 1 . 1 . . 4 Engine 4 | 1 . 1 . . 2 Core 2 | . . . . . 2 Reactor . | . . . . . . Propulsion 8 | 2 . 1 2 . 3 Treads . | . . . . . . Leg 7 | 2 . 1 2 . 2 Wheel 1 | . . . . . 1 Hover . | . . . . . . Flight . | . . . . . . Utility 11 | 1 1 1 . 1 7 Device 3 | . . 1 . 1 1 Storage 5 | 1 1 . . . 3 Processor 1 | . . . . . 1 Hackware . | . . . . . . Protection 2 | . . . . . 2 Artifact . | . . . . . . Weapon 19 | 2 2 5 . 1 9 Energy Gun 2 | . . 2 . . . Energy Cannon 8 | . 2 2 . . 4 Ballistic Gun 4 | 2 . . . 1 1 Ballistic Cannon 2 | . . . . . 2 Launcher 3 | . . 1 . . 2 Special Weapon . | . . . . . . Impact Weapon . | . . . . . . Slashing Weapon . | . . . . . . Piercing Weapon . | . . . . . . Special Melee Weapon . | . . . . . . Unidentified Prototypes 2 | . . 1 . . 1 Parts Lost 25 | . . 4 . . 21 Power 5 | . . 1 . . 4 Propulsion 5 | . . 1 . . 4 Utility 8 | . . 1 . . 7 Weapon 7 | . . 1 . . 6 Highest Loss Streak 11 | . . 4 . . 11 To Critical Strikes . | . . . . . . Average Backups 5 | 3 7 4 3 2 6 Power . | . 1 . . . . Propulsion . | 2 2 1 . . . Utility . | . . . . . . Weapon 4 | . 3 2 3 2 5 Tool/Special . | . . . . . . Unused Backups 10 | . 4 1 . . 5 Power . | . . . . . . Propulsion 4 | . 4 . . . . Utility 2 | . . . . . 2 Weapon 3 | . . . . . 3 Tool/Special 1 | . . 1 . . . Average Slot Usage (%) 78 | . 88 86 57 67 74 Engine 9 | . 14 13 14 14 4 Core 1 | . . . . . 4 Leg 24 | . 28 27 28 28 19 Wheel 1 | . . . . . 2 Device 4 | . . 2 . . 8 Storage 13 | . 17 14 14 14 10 Processor 3 | . . . . . 8 Energy Gun 4 | . . 16 . . 1 Energy Cannon 6 | . 17 10 . . . Ballistic Gun 5 | . 10 . . 10 7 Ballistic Cannon 1 | . . . . . 4 Peak Build Rating 35 | 6 10 17 6 22 35 Average Rating 15 | 4 8 8 5 18 25 On Entrance 8 | . 6 9 6 6 22 Naked Turns . | . . . . . . Heaviest Build 34 | 13 21 19 10 22 34 Greatest Support 35 | 20 20 20 20 20 35 Greatest Overweight (x) 2 | . 1 1 . 1 2 Average Overweight (x) . | . . . . . . Largest Inventory Capacity 10 | 8 8 8 8 8 10 Average Capacity 8 | 6 8 8 8 8 8 Most Carried 10 | 6 8 8 8 8 10 Average Carried 7 | 3 7 6 7 6 8 Final Capacity 10 | 8 8 8 8 8 10 Final Carried 8 | 6 8 8 8 6 4 Class Distribution -------------------- 100% | Mutant Dominant Class ---------------- Mutant | -10/Materials Mutant | -10/Mines Mutant | -10/Exiles Mutant | -9/Mines Mutant | -8/Materials Resources | -11 -10 -10 -10 -9 -8 ----------- Run | Yrd Mat Min Exi Min Mat Matter Collected 900 | 204 90 177 55 20 354 Remotely 50 | . . . . . 50 Salvage Created 1649 | . 321 216 . . 1112 Parts 83 | . 13 14 . . 56 Haulers Intercepted 1 | . . . . . 1 Recyclers Shooed . | . . . . . . Parts Field Recycled . | . . . . . . Retrieved Matter . | . . . . . . Parts Self-Destructed . | . . . . . . Prevented . | . . . . . . Kills | -11 -10 -10 -10 -9 -8 ------- Run | Yrd Mat Min Exi Min Mat Combat Hostiles Destroyed 39 | . 8 11 . . 20 Guns 14 | . . 3 . . 11 Cannons 14 | . 5 4 . . 5 AOE 9 | . 2 3 . . 4 Classes Destroyed 13 | . 4 1 . . 8 Worker 4 | . . . . . 4 Builder 3 | . . . . . 3 Tunneler 2 | . . . . . 2 Hauler 1 | . . . . . 1 Recycler 1 | . . . . . 1 Operator 2 | . 1 . . . 1 Watcher 1 | . 1 . . . . Swarmer 9 | . 3 6 . . . Grunt 23 | . 5 3 . . 15 Brawler 1 | . . . . . 1 Duelist 1 | . . . . . 1 Sentry 3 | . . . . . 3 Assembled 2 | . . 2 . . . Best Kill Streak 8 | . 4 3 . . 8 Combat Bots Only 4 | . 4 3 . . 4 Max Kills in Single Turn 2 | . 2 2 . . 2 Gunslinging . | . . . . . . Exploded 2 | . 1 2 . . 1 Melee . | . . . . . . Uniques/NPCs Destroyed . | . . . . . . Combat | -11 -10 -10 -10 -9 -8 -------- Run | Yrd Mat Min Exi Min Mat Hostile Shots Fired 264 | . 10 64 . . 190 Missed 74 | . 6 14 . . 54 Hits 190 | . 4 50 . . 136 Melee 8 | . . 6 . . 2 Projectile 182 | . 4 44 . . 134 Critical Strikes 12 | . . 1 . . 11 Damage Taken 3458 | . 86 704 . . 2668 Core 660 | . 12 96 . . 552 Absorbed by Shields . | . . . . . . Core Remaining (%) 78 | 100 . . . 56 . Volleys Fired 120 | . 20 32 . . 68 Largest 2 | . 2 2 . . 2 Hottest 136 | . 112 112 . . 136 Shots Fired 247 | . 40 51 . . 156 Gun 129 | . 2 24 . . 103 Cannon 102 | . 38 20 . . 44 Launcher 16 | . . 7 . . 9 Special . | . . . . . . Kinetic 95 | . 2 . . . 93 Thermal 78 | . . 24 . . 54 Explosive 16 | . . 7 . . 9 Electromagnetic 58 | . 38 20 . . . Robot Hit Streak 12 | . 9 5 . . 12 Robot Miss Streak 5 | . 3 5 . . 4 Penetration Max 1 | . . . . . 1 Secondary Targets 1 | . . 1 . . . Max Gunslinging Chain 1 | . . 1 . . . Autonomous 37 | . . . . . 37 Shots Hit Robots 156 | . 25 23 . . 108 Core Hits 87 | . 12 15 . . 60 Critical Kills . | . . . . . . Critical Parts Destroyed 1 | . . . . . 1 Critical Strikes 7 | . . 2 . . 5 Burn 5 | . . 2 . . 3 Destroy 1 | . . . . . 1 Blast 1 | . . . . . 1 Melee Attacks . | . . . . . . Impact . | . . . . . . Slashing . | . . . . . . Piercing . | . . . . . . Sneak Attacks . | . . . . . . Combat Hostiles . | . . . . . . Follow-up Attacks . | . . . . . . Damage Inflicted 4331 | . 732 570 . . 3029 Guns 1677 | . 6 163 . . 1508 Cannons 1412 | . 610 153 . . 649 Explosions 1242 | . 116 254 . . 872 Melee . | . . . . . . Ramming . | . . . . . . Kinetic 1611 | . 6 . . . 1605 Thermal 942 | . 116 274 . . 552 Explosive 1015 | . . 143 . . 872 Electromagnetic 763 | . 610 153 . . . Impact . | . . . . . . Slashing . | . . . . . . Piercing . | . . . . . . Highest Corruption 18 | . . 18 18 18 . Average Corruption 17 | . . 17 18 18 . Corruption Purged . | . . . . . . Corruption Blocked . | . . . . . . Effects 37 | . . 26 10 1 . Message Errors 5 | . . 4 . 1 . Matter Fused 10 | . . 6 4 . . Heat Flow Errors 7 | . . 6 1 . . Energy Discharges 4 | . . 3 1 . . Parts Fused 2 | . . 2 . . . Data Loss (minor) 1 | . . . 1 . . Data Loss (major) 3 | . . . 3 . . Misfires 1 | . . 1 . . . Misdirections 1 | . . 1 . . . Weapon Failures 3 | . . 3 . . . Overload Shots . | . . . . . . Overflow Damage 38 | . 28 9 . . 1 Projectiles 8 | . 8 . . . . Explosions 30 | . 20 9 . . 1 Melee . | . . . . . . Knockbacks 3 | . . . . . 3 Impact . | . . . . . . Kinetic 3 | . . . . . 3 Secondary . | . . . . . . Self-Inflicted Damage 140 | . 32 108 . . . Shots 5 | . 1 4 . . . Rammed . | . . . . . . Targets Rammed . | . . . . . . Kicked . | . . . . . . Crushed . | . . . . . . Highest Temperature 408 | . 198 339 247 . 408 Average Temperature 90 | . 76 105 128 . 78 Received Heat Transfer 1248 | . 30 102 . . 1116 Effects 1 | . . . . . 1 Energy Bleed 1 | . . . . . 1 Siege Activations . | . . . . . . Martial Activations . | . . . . . . Shielding Activations . | . . . . . . Robots Disrupted 1 | . 1 . . . . Combat Hostiles 1 | . 1 . . . . Robots Corrupted 1 | . 1 . . . . Combat Hostiles 1 | . 1 . . . . Parts Fried 4 | . 4 . . . . Impact Corruptions . | . . . . . . Robots Melted 1 | . . 1 . . . Combat Hostiles 1 | . . 1 . . . Parts Melted 2 | . . 1 . . 1 Heat Transferred 2557 | . 150 779 . . 1628 Parts Sabotaged . | . . . . . . Parts Stolen . | . . . . . . Parts Stripped . | . . . . . . Power Chain Reactions 3 | . 2 1 . . . Alert | -11 -10 -10 -10 -9 -8 ------- Run | Yrd Mat Min Exi Min Mat Maximum Alert Level 1 | . 1 . . . . Low Security (%) 96 | 100 84 100 . 100 100 Level 1 3 | . 15 . . . . Level 2 . | . . . . . . Level 3 . | . . . . . . Level 4 . | . . . . . . Level 5 . | . . . . . . High Security . | . . . . . . Max Security . | . . . . . . Peak Influence 223 | . 223 136 . . 188 Initial 66 | . . 66 . . . Average 63 | . 91 34 . . 73 Influence Increases 1249 | . 322 217 . . 710 Destroy 0b10 Robot/C 740 | . 160 180 . . 400 Destroy 0b10 Robot/NC 70 | . 10 . . . 60 Destroy Leader 144 | . 32 20 . . 92 Successful Hack 21 | . 4 . . . 17 Disable Machine 105 | . 60 . . . 45 Destroy Structure 79 | . 11 17 . . 51 Lose Combat Pursuer 90 | . 45 . . . 45 Influence Decreases 1164 | . 152 387 . . 625 Entered New Map 104 | . . 104 . . . Time Decay 830 | . 152 243 . . 435 Lost Part 230 | . . 40 . . 190 Squads Dispatched 5 | . . . . . 5 Investigation 1 | . . . . . 1 Extermination . | . . . . . . Reinforcement 4 | . . . . . 4 Assault . | . . . . . . Garrison . | . . . . . . Intercept . | . . . . . . Searches Triggered . | . . . . . . Construction Impeded 2 | . . . . . 2 Haulers Reinforced . | . . . . . . Active Scanning Responses . | . . . . . . Cargo Convoy Interrupts . | . . . . . . Stealth | -11 -10 -10 -10 -9 -8 --------- Run | Yrd Mat Min Exi Min Mat Distress Signals 3 | . 1 . . . 2 Communications Jammed . | . . . . . . Distress Signals . | . . . . . . Times Spotted 56 | . 16 11 . . 29 Peak Tracking Total 6 | . 5 3 . . 6 Tactical Retreats 5 | . 2 . . . 3 Traps | -11 -10 -10 -10 -9 -8 ------- Run | Yrd Mat Min Exi Min Mat Traps Triggered 1 | . . . . . 1 Indirectly . | . . . . . . Trap Hack Attempts . | . . . . . . Triggered . | . . . . . . Disarmed . | . . . . . . Reprogrammed . | . . . . . . Reused . | . . . . . . Traps Extracted . | . . . . . . Installed 2 | . . . . . 2 Triggered . | . . . . . . Most Traps Carried 4 | . . 4 4 4 4 Machines | -11 -10 -10 -10 -9 -8 ---------- Run | Yrd Mat Min Exi Min Mat Machines Disabled 7 | . 4 . . . 3 Max in Single Turn 2 | . 2 . . . 1 Machines Repaired . | . . . . . . Machines Dismantled . | . . . . . . Machines Sabotaged . | . . . . . . Overloaded Fab Kills . | . . . . . . Hacking | -11 -10 -10 -10 -9 -8 --------- Run | Yrd Mat Min Exi Min Mat Machines Accessed 11 | . 5 . 2 . 4 Terminals 8 | . 5 . . . 3 Fabricators . | . . . . . . Repair Stations . | . . . . . . Recycling Units . | . . . . . . Scanalyzers 1 | . . . . . 1 Garrison Access . | . . . . . . Total Hacks 40 | . 24 . 5 . 11 Successful 21 | . 13 . 5 . 3 Failed 19 | . 11 . . . 8 Catastrophic 3 | . 3 . . . . Database Lockouts . | . . . . . . Manual 3 | . 2 . 1 . . Terminals 33 | . 24 . . . 9 Fabricators . | . . . . . . Repair Stations . | . . . . . . Recycling Units . | . . . . . . Scanalyzers 2 | . . . . . 2 Garrison Access . | . . . . . . Terminal Hacks 17 | . 11 . 5 . 1 Record 4 | . . . 4 . . Robot Analysis 1 | . 1 . . . . Prototype ID Bank 2 | . 2 . . . . Branch Access Points 1 | . 1 . . . . Alert Level 2 | . 2 . . . . Locate Traps 1 | . 1 . . . . Dispatch Records 2 | . 2 . . . . Hauler Manifests 1 | . . . . . 1 Registered Components 1 | . 1 . . . . Zone Layout 1 | . 1 . . . . Proto ID Catalog 1 | . . . 1 . . Fabricator Hacks . | . . . . . . Repair Station Hacks . | . . . . . . Recycling Unit Hacks . | . . . . . . Scanalyzer 2 | . . . . . 2 Insert Component 1 | . . . . . 1 Analyze 1 | . . . . . 1 Garrison Access Hacks . | . . . . . . Unauthorized Hacks 2 | . 2 . . . . Terminals 2 | . 2 . . . . Botnet 2 | . 2 . . . . Fabricators . | . . . . . . Repair Stations . | . . . . . . Recycling Units . | . . . . . . Scanalyzers . | . . . . . . Garrison Access . | . . . . . . Data Cores Recovered 2 | . 1 . . . 1 Used . | . . . . . . Hacking Detections 8 | . 4 . . . 4 Full Trace Events . | . . . . . . Feedback Events . | . . . . . . Feedback Blocked . | . . . . . . Robot Schematics Acquired . | . . . . . . Robots Built . | . . . . . . Authchips . | . . . . . . Time . | . . . . . . Total Robot Build Rating . | . . . . . . Part Schematics Acquired 1 | . . . . . 1 Parts Built . | . . . . . . Authchips . | . . . . . . Time . | . . . . . . Total Part Build Rating . | . . . . . . Parts Repaired . | . . . . . . Time . | . . . . . . Parts Recycled . | . . . . . . Recycled Matter . | . . . . . . Retrieved Matter . | . . . . . . Retrieved Components . | . . . . . . Parts Scanalyzed 1 | . . . . . 1 Part Schematics Acquired 1 | . . . . . 1 Parts Damaged . | . . . . . . Bothacking | -11 -10 -10 -10 -9 -8 ------------ Run | Yrd Mat Min Exi Min Mat Used RIF Installer . | . . . . . . Robots Hacked . | . . . . . . Non-combat . | . . . . . . Combat . | . . . . . . Robot Hacks Applied . | . . . . . . Relay Couplers Released . | . . . . . . Fabnet Peak Effective % . | . . . . . . Robots Rewired . | . . . . . . Allies Hacked . | . . . . . . Hacks Repelled . | . . . . . . Allies | -11 -10 -10 -10 -9 -8 -------- Run | Yrd Mat Min Exi Min Mat Total Allies . | . . . . . . Largest Group . | . . . . . . Highest-Rated Group . | . . . . . . Highest-Rated Ally . | . . . . . . Total Orders . | . . . . . . Ally Attacks . | . . . . . . Total Damage . | . . . . . . Kills . | . . . . . . Allies Corrupted . | . . . . . . Allies Melted . | . . . . . . Intel | -11 -10 -10 -10 -9 -8 ------- Run | Yrd Mat Min Exi Min Mat Active Infowar (turns) 127 | . . 127 . . . Sensors 127 | . . 127 . . . Robot Analysis Total 1 | . 1 . . . . Derelict Logs Recovered 1 | . . 1 . . . Drone Launches . | . . . . . . Drone Recoveries . | . . . . . . Exploration | -11 -10 -10 -10 -9 -8 ------------- Run | Yrd Mat Min Exi Min Mat Turns Passed 3047 | 64 567 770 309 35 1302 Spaces Moved 1898 | 45 408 548 251 27 619 Core 6 | 6 . . . . . Treads . | . . . . . . Legs 1797 | 39 408 548 251 27 524 Wheels 95 | . . . . . 95 Hover . | . . . . . . Flight . | . . . . . . Fastest Speed 50 | 50 120 120 120 120 105 Average Speed 123 | 110 120 120 120 125 131 Slowest Speed 260 | 120 190 190 120 190 260 Overloaded Moves . | . . . . . . Propulsion Burnouts . | . . . . . . Robots Hopped . | . . . . . . Potential Cave-ins . | . . . . . . Cave-ins Triggered . | . . . . . . Exploration Rate (%) 42 | 4 74 78 61 6 34 Regions Visited 5 Branch Regions 3 Pre-discovered Areas 1 | . . . 1 . . Known Exits Taken 1 | . 1 . . . . Unknown Exits Taken 4 | 1 . 1 1 1 . Scrap Searched 2 | . . 1 . 1 . Spaces Dug 1 | . . 1 . . . Terrain Destroyed 101 | . 9 24 . . 68 Melee . | . . . . . . Projectile 19 | . . . . . 19 AOE 82 | . 9 24 . . 49 Terrain Rammed . | . . . . . . Walls Destroyed . | . . . . . . Machines Disabled . | . . . . . . Actions | -11 -10 -10 -10 -9 -8 --------- Run | Yrd Mat Min Exi Min Mat Total 2388 | 56 446 605 261 28 992 Wait 254 | . 3 7 . . 244 Move 1893 | 44 407 547 250 26 619 Hop . | . . . . . . Pick Up 38 | 6 6 6 3 . 17 Fast Attach 23 | 6 3 1 . 1 12 Attach 17 | . . 4 . 1 12 Detach 2 | . . 1 . . 1 Swap 9 | . . 4 2 . 3 Drop 30 | . 7 3 6 . 14 Fire 120 | . 20 32 . . 68 Melee . | . . . . . . Ram . | . . . . . . Kick . | . . . . . . Crush . | . . . . . . Escape Stasis . | . . . . . . Rewire . | . . . . . . Trap 2 | . . . . . 2 Miscellaneous . | . . . . . . Route ------- -11/Scrapyard -10/Materials (discovered 3 exits: [*Mat x2] / *Min) -10/Mines (discovered 2 exits: [*Mat] / *Exi) -10/Exiles -9/Mines -8/Materials (discovered 1 exit: Sto) History --------- Turn | Location | Event 31 | -11/Scrapyard | Discovered new exit (range 16) 65 | -11/Scrapyard | Entered Materials 215 | -10/Materials | Identified exit to Mines 300 | -10/Materials | Discovered new exit (range 3) 317 | -10/Materials | Build established: Mutant 538 | -10/Materials | Discovered new exit (range 11) 632 | -10/Materials | Entered Mines 649 | -10/Mines | Met a Derelict bent on vengeance 719 | -10/Mines | Found a hidden stash of uninstalled traps 791 | -10/Mines | Found a damaged Exp. Sensor Array with a note attached 794 | -10/Mines | Found Prototype Device 794 | -10/Mines | Identified Exp. Sensor Array 904 | -10/Mines | Excavation squad dispatched 904 | -10/Mines | A large section of the Mines collapsed 931 | -10/Mines | System corruption reached 10% 961 | -10/Mines | Lost 4 parts (1p1n1u1w) 1056 | -10/Mines | Discovered new exit (range 9) 1398 | -10/Mines | Deemed a non-threat by the Exiles lab entrance 1398 | -10/Mines | Discovered new exit (range 5) 1402 | -10/Mines | Entered Exiles 1441 | -10/Exiles | Met 8R-AWN 1461 | -10/Exiles | Met EX-HEX 1495 | -10/Exiles | Met EX-BIN 1517 | -10/Exiles | Aligned with FarCom system 1519 | -10/Exiles | Given EX-Vault access code 1547 | -10/Exiles | Opened EX-Vault 1558 | -10/Exiles | Found AWS/Gauss 1581 | -10/Exiles | Warned to stay clear of 0b10 Research branches 1615 | -10/Exiles | Met EX-DEC 1625 | -10/Exiles | Learned location of Zion (-7) 1696 | -10/Exiles | Discovered new exit (range 14) 1711 | -10/Exiles | Left Exiles lab with AWS/Gauss 1711 | -10/Exiles | Entered Mines 1733 | -9/Mines | Discovered new exit (range 6) 1746 | -9/Mines | Entered Materials 1746 | -8/Materials | Evolved 4 slots: Propulsion x1, Utility x3 1747 | -8/Materials | Identified exit to Storage 2290 | -8/Materials | AWS/Gauss suddenly broke down 2390 | -8/Materials | Lost 6 parts (2p1n2u1w) 3014 | -8/Materials | Core integrity fell below 50% 3036 | -8/Materials | Core integrity fell below 20% 3048 | -8/Materials | Destroyed by G-47 Trooper with Particle Gun Last Messages --------------- 03034_ U-05 Engineer lays Concrete. 03035_ Arm. Wheel blasted off. 03035_ Knocked back. 03036_ U-05 Engineer lays Concrete. 03037_ Overheating: Energy bleed (-7). 03037_ U-05 Engineer lays Concrete. 03039_ G-47 Trooper destroyed. 03040_ Adv. Beam Cannon destroyed. 03040_ R-06 Scavenger collects Arm. Wheel. 03040_ U-05 Engineer lays Concrete. 03041_ ALERT: Hostiles spotted, dispatching reinforcements to Terminal M004. 03041_ U-05 Engineer lays Concrete. 03043_ K-01 Serf collects debris. 03044_ U-05 Engineer lays Concrete. 03046_ K-01 Serf collects debris. 03046_ U-05 Engineer lays Concrete. 03047_ Knocked back. 03047_ U-05 Engineer lays Concrete. 03047_ R-06 Scavenger collects Imp. Heat Sink. Map ----- +----------------------------------------------------+ | ?????????????????????????????????????????????????? | | ?????????????????????????????????????????????????? | | ?????????????????????????????????????????????????? | | ?????????????????????????????????????????????????? | | ?????????????????????????????????????????????????? | | ?????????????????????????????????????????????????? | | ?????????????????????????????????????????????????? | | ?????????????????????????????????????????????????? | | ??????????????????????????????h??????????????????? | | ?????????????????????????????????????????????????? | | ?????????????????????????????????????????????????? | | ?????????????????????????????????????????????????? | | ??????????????????????????????Y??????????????????? | | ?????????????????????????????????????????????????? | | #####????????????????????????????????????????????? | | ] ##???????????????????????????????????????????? | | #???????????????????????????????????????????? | | *%##????######################?????????????????? | | #????? # #?????????????????? | | ""#?????""" """ T # #?????????????????? | | Y"#???# """ """ # #?????????????????? | | ""#???# """ """ #= #??????""?????????? | | #???# !####+######???? ""?????????? | | #################+### #?### ????????????? | | ! ###T;### # ?? | | % a= @ g g ?? | | !% r % % Hu ?? | | % % % u % % % % ?? | | """ """ k g = ######### ??? | | #### """ """ ### %= #?????????? ##??? | | ## """ ""% % ## #+ ####???????????####???? | | ## ## # #??????????????????? | | ## # # """ #??????????????????? | | / """ """ ##?# T" #??????????????????? | | ## """ """ # ?# """ #??????????????????? | | ## """ """ % %# ?# #??????????????????? | | ## # ?# """ #??????????????????? | | ## # # """ #??????????????????? | | ## ######## # # """ #??????????????????? | | ## #??????# # # #?????????####?????? | | ## #??????# % # ###########???##### #?????? | | ## #?????## ##########??????# #?????? | | #### ??????## %*% ######## #?????? | | ???#+???????# ! # #?????? | | ????=???????# !%* #?????? | | ????????????# # #??????? | | ????????????# ###### #### ##??????? | | ????????????############+######## #??????????????? | | ??????????????????# ## #??????????????? | | ??????????????????# ## #??????#####???? | +----------------------------------------------------+ Best States ------------- Heat Dissipation 53 Energy Generation 14 Energy Capacity 440 Matter Stores 300 Matter Capacity 450 Sight Range 16 Robot Scan Range 20 Terrain Scan Density 10 Armor Coverage 225 Evasion (%) 55 Item Schematics ----------------- Carbon-fiber Leg | -8/Materials | Scanalyzed Robot Schematics ------------------ None Fabricated ------------ Nothing Repaired ---------- Nothing Alien Tech Used ----------------- None Achievements -------------- Maybe Next Time I'll Detach My Launcher Challenges ------------ None Game ------ Seed PhysicsSmartTearclaws Manual? 0 Play Time 00:41:17 Cumulative 43.7 hours Start 2025.05.22 @ 22:08:36 End 2025.05.22 @ 22:51:17 Sessions 1 Manual Loads 0 Difficulty Rogue Special Mode None Game No. 36 Rogue 36 Adventurer 0 Explorer 0 Win Type - Total 2 Types 2/0/0/0/0/0/0/0/0/0 Lore% 30 Gallery% 37 Achievement% 35 Wizard Run 0 Options --------- Layout 1 ASCII 0 Keyboard 0 Movement Mouse Keybinds 0 Fullscreen 2 Font 24/Smallcaps Map View 50x35 Zoom Use 0% Tactical HUD 1 Map Filters NONE Filters NONE Steam 1 RUN: 4abdadd3-29f4-4d67-b549-dea68cc32492